fUSD/lending_fUSD_20260221
["ID","MTS","AMOUNT","RATE_DAILY","PERIOD"]
[406265199,1771671044288,-150.552083,0.00043835,120]
[406265200,1771671044297,-150.552083,0.00043835,120]
[406265201,1771671044305,-150.552083,0.00043835,120]
[406265202,1771671044314,-150.552083,0.00043835,120]
[406265203,1771671044323,-150.552083,0.00043835,120]
[406265204,1771671044334,-150.552083,0.00043835,120]
[406265205,1771671044343,-150.552083,0.00043835,120]
[406265206,1771671044353,-150.552083,0.00043835,120]
[406265207,1771671044363,-150.552083,0.00043835,120]
[406265208,1771671044374,-150.552083,0.00043835,120]
[406265209,1771671044383,-150.552083,0.00043835,120]
[406265210,1771671044394,-150.552083,0.00043835,120]
[406265211,1771671044403,-150.552083,0.00043835,120]
[406265212,1771671044415,-150.552083,0.00043835,120]
[406265213,1771671044426,-150.552083,0.00043835,120]
[406265214,1771671044435,-150.552083,0.00043835,120]
[406265215,1771671044445,-150.552083,0.00043835,120]
[406265216,1771671044454,-500.0,0.00043835,70]
[406265217,1771671044463,-150.552083,0.00043835,120]
[406265218,1771671044472,-150.552083,0.00043835,120]
[406265219,1771671044481,-150.552083,0.00043835,120]
[406265220,1771671044490,-150.552083,0.00043835,120]
[406265221,1771671044500,-150.552083,0.00043835,120]
[406265222,1771671044509,-150.552083,0.00043835,120]
[406265223,1771671044518,-150.552083,0.00043835,120]
[406265224,1771671044527,-150.552083,0.00043835,120]
[406265225,1771671044536,-150.552083,0.00043835,120]
[406265226,1771671044550,-150.552083,0.00043835,120]
[406265227,1771671044560,-150.131079,0.00043835,120]
[406265228,1771671044569,-150.129742,0.00043835,120]
[406265229,1771671044578,-150.129742,0.00043835,120]
[406265230,1771671044587,-150.129742,0.00043835,120]
[406265231,1771671044599,-150.129742,0.00043835,120]
[406265232,1771671044608,-150.129742,0.00043835,120]
[406265233,1771671044618,-150.129742,0.00043835,120]
[406265234,1771671044628,-150.129742,0.00043835,120]
[406265235,1771671044637,-150.129742,0.00043835,120]
[406265236,1771671044650,-150.129742,0.00043835,120]
[406265237,1771671044668,-150.129742,0.00043835,120]
[406265238,1771671044680,-150.129742,0.00043835,120]
[406265239,1771671044691,-150.129742,0.00043835,120]
[406265240,1771671044701,-150.129742,0.00043835,120]
[406265241,1771671044712,-150.129742,0.00043835,120]
[406265242,1771671044724,-150.129742,0.00043835,120]
[406265243,1771671044734,-150.129742,0.00043835,120]
[406265244,1771671044744,-150.129742,0.00043835,120]
[406265245,1771671044754,-150.129742,0.00043835,120]
[406265246,1771671044763,-150.129742,0.00043835,120]
[406265247,1771671044775,-150.129742,0.00043835,120]
[406265248,1771671044798,-150.129742,0.00043835,120]
[406265249,1771671044821,-150.129742,0.00043835,120]
[406265250,1771671044844,-150.129742,0.00043835,120]
[406265251,1771671044855,-150.129742,0.00043835,120]
[406265252,1771671044866,-150.129742,0.00043835,120]
[406265253,1771671044878,-150.129742,0.00043835,120]
[406265254,1771671044890,-150.129742,0.00043835,120]
[406265255,1771671044899,-150.129742,0.00043835,120]
[406265256,1771671044909,-150.129742,0.00043835,120]
[406265257,1771671044919,-150.129742,0.00043835,120]
[406265259,1771671044930,-150.552083,0.00043835,120]
[406265261,1771671044942,-150.129742,0.00043835,120]
[406265263,1771671044953,-150.552083,0.00043835,120]
[406265264,1771671044963,-150.129742,0.00043835,120]
[406265265,1771671044974,-150.552083,0.00043835,120]
[406265266,1771671044986,-150.129742,0.00043835,120]
[406265267,1771671044998,-150.552083,0.00043835,120]
[406265268,1771671045008,-150.129742,0.00043835,120]
[406265269,1771671045018,-150.552083,0.00043835,120]
[406265270,1771671045028,-150.129742,0.00043835,120]
[406265271,1771671045038,-150.552083,0.00043835,120]
[406265272,1771671045048,-150.129742,0.00043835,120]
[406265273,1771671045059,-150.552083,0.00043835,120]
[406265274,1771671045070,-150.129742,0.00043835,120]
[406265275,1771671045079,-150.552083,0.00043835,120]
[406265276,1771671045090,-150.129742,0.00043835,120]
[406265277,1771671045099,-150.552083,0.00043835,120]
[406265278,1771671045110,-150.129742,0.00043835,120]
[406265279,1771671045120,-150.552083,0.00043835,120]
[406265280,1771671045129,-150.129742,0.00043835,120]
[406265281,1771671045150,-150.129742,0.00043835,120]
[406265282,1771671045162,-150.129742,0.00043835,120]
[406265283,1771671045174,-150.129742,0.00043835,120]
[406265284,1771671045185,-150.129742,0.00043835,120]
[406265285,1771671045195,-150.129742,0.00043835,120]
[406265286,1771671045204,-150.129742,0.00043835,120]
[406265287,1771671045216,-150.129742,0.00043835,120]
[406265288,1771671045225,-150.129742,0.00043835,120]
[406265289,1771671045235,-150.129742,0.00043835,120]
[406265290,1771671045247,-150.129742,0.00043835,120]
[406265291,1771671045256,-150.129742,0.00043835,120]
[406265292,1771671045266,-150.129742,0.00043835,120]
[406265293,1771671045275,-150.129742,0.00043835,120]
[406265294,1771671045284,-842.0,0.00043836,120]
[406265295,1771671045294,-167.82603777,0.00043836,2]
[406265296,1771671045303,-150.0,0.00043836,120]
[406265297,1771671045316,-150.0,0.00043836,120]
[406265298,1771671045325,-150.0,0.00043836,120]
[406265299,1771671045334,-236.12328754,0.00043836,120]
[406265300,1771671045344,-150.0,0.00043836,120]
[406265301,1771671045353,-150.0,0.00043836,120]
[406265303,1771671045362,-150.0,0.00043836,120]
[406265305,1771671045371,-150.0,0.00043836,120]
[406265306,1771671045381,-150.0,0.00043836,120]
[406265307,1771671045390,-251.0,0.00043836,120]
[406265308,1771671045399,-211.81596152,0.00043836,120]
[406265309,1771671045409,-500.0,0.00043836,120]
[406265310,1771671045418,-150.0,0.00043836,2]
[406265311,1771671045427,-500.0,0.00043836,120]
[406265312,1771671045437,-150.0,0.00043836,2]
[406265313,1771671045446,-500.0,0.00043836,120]
[406265314,1771671045455,-150.0,0.00043836,120]
[406265315,1771671045463,-162.34238859,0.00043836,120]
[406265316,1771671045473,-500.0,0.00043836,120]
[406265317,1771671045483,-500.0,0.00043836,120]
[406265318,1771671045493,-500.0,0.00043836,120]
[406265319,1771671045503,-500.0,0.00043836,120]
[406265320,1771671045512,-500.0,0.00043836,120]
[406265321,1771671045521,-500.0,0.00043836,120]
[406265322,1771671045530,-1258.68,0.0004385,120]
[406265323,1771671045540,-1000.0,0.00043958,14]
[406265324,1771671045549,-300.0,0.00044,120]
[406265325,1771671045558,-160.0,0.00044,120]
[406265326,1771671045568,-500.0,0.00044072,60]
[406265327,1771671045577,-227.58,0.000441,14]
[406265328,1771671045586,-2000.0,0.000441,2]
[406265329,1771671045595,-999.0,0.00044136,120]
[406265330,1771671045604,-196.03907193,0.000442,120]
[406265331,1771671045613,-177.22145727,0.000442,120]
[406265332,1771671045621,-201.80762842,0.000442,120]
[406265333,1771671045630,-254.05392639,0.000442,120]
[406265334,1771671045640,-183.10282582,0.000442,120]
[406265335,1771671045653,-184.12604253,0.000442,120]
[406265336,1771671045662,-1000.0,0.00044318,14]
[406265337,1771671045673,-1000.0,0.00044347,14]
[406265338,1771671045683,-500.0,0.00044383,120]
[406265340,1771671045693,-266.21198724,0.00044383,120]
[406265342,1771671045706,-405.94316194,0.00044383,2]
[406265344,1771671045716,-370.53793113,0.00044383,120]
[406265346,1771671045725,-842.0,0.00044384,120]
[406265348,1771671045734,-150.0,0.000444,120]
[406265350,1771671045743,-150.0,0.000444,120]
[406265351,1771671045752,-150.0,0.000444,120]
[406265352,1771671045762,-150.0,0.000444,120]
[406265353,1771671045771,-1000.0,0.00044427,14]
[406265354,1771671045780,-150.94414865,0.00044434,14]
[406265355,1771671045790,-1000.0,0.00044447,14]
[406265356,1771671045799,-700.0,0.00044451,4]
[406265357,1771671045809,-1000.0,0.00044459,14]
[406265358,1771671045819,-1000.0,0.0004446,14]
[406265359,1771671045829,-1054.72374,0.0004449,120]
[406265360,1771671045838,-1054.72374,0.0004449,120]
[406265361,1771671045847,-1054.72374,0.0004449,120]
[406265362,1771671045856,-1054.72374,0.0004449,120]
[406265363,1771671045865,-1054.72374,0.0004449,120]
[406265364,1771671045876,-163.32,0.000445,30]
[406265365,1771671045885,-1137.72101375,0.000445,120]
[406265366,1771671045894,-2000.0,0.000445,16]
[406265367,1771671045903,-1000.0,0.00044506,14]
[406265368,1771671045912,-1000.0,0.00044529,14]
[406265369,1771671045922,-1000.0,0.00044533,14]
[406265370,1771671045930,-1000.0,0.00044533,14]
[406265371,1771671045940,-1000.0,0.00044547,14]
[406265372,1771671045949,-150.0,0.00044548,14]
[406265373,1771671045958,-150.0,0.00044559,14]
[406265374,1771671045969,-150.0,0.0004459,14]
[406265375,1771671045979,-150.0,0.0004459,14]
[406265376,1771671045989,-2000.0,0.000446,16]
[406265377,1771671045997,-500.0,0.0004462,60]
[406265378,1771671046008,-500.0,0.0004462,60]
[406265379,1771671046019,-1000.0,0.00044622,14]
[406265380,1771671046029,-150.0,0.0004463,14]
[406265381,1771671046040,-1000.0,0.00044633,14]
[406265382,1771671046049,-1000.0,0.00044636,14]
[406265383,1771671046060,-1000.0,0.00044637,14]
[406265384,1771671046069,-1000.0,0.00044645,14]
[406265385,1771671046081,-1000.0,0.00044652,14]
[406265386,1771671046090,-150.0,0.00044655,14]
[406265387,1771671046101,-150.0,0.00044656,14]
[406265388,1771671046112,-1000.0,0.00044657,14]
[406265389,1771671046122,-150.0,0.00044671,14]
[406265390,1771671046132,-1000.0,0.00044673,14]
[406265391,1771671046142,-150.0,0.00044681,14]
[406265392,1771671046151,-1000.0,0.00044682,14]
[406265393,1771671046159,-1000.0,0.00044685,14]
[406265394,1771671046169,-1000.0,0.00044687,14]
[406265395,1771671046178,-1000.0,0.00044691,14]
[406265396,1771671046187,-2000.0,0.000447,16]
[406265397,1771671046195,-1000.0,0.00044716,14]
[406265398,1771671046204,-1000.0,0.00044718,14]
[406265399,1771671046213,-1000.0,0.00044724,14]
[406265400,1771671046222,-150.0,0.00044726,14]
[406265401,1771671046232,-150.0,0.00044728,14]
[406265402,1771671046241,-1000.0,0.00044732,14]
[406265403,1771671046250,-1000.0,0.00044757,14]
[406265404,1771671046259,-150.0,0.00044761,14]
[406265405,1771671046268,-4958.26,0.00044766,120]
[406265406,1771671046277,-1000.0,0.0004477,3]
[406265407,1771671046286,-500.0,0.0004477,3]
[406265408,1771671046297,-1000.0,0.00044778,14]
[406265409,1771671046307,-1000.0,0.0004478,14]
[406265410,1771671046318,-1000.0,0.00044785,14]
[406265411,1771671046327,-1000.0,0.00044789,14]
[406265412,1771671046337,-500.0,0.00044794,120]
[406265413,1771671046346,-200.0,0.00044794,120]
[406265414,1771671046355,-1000.0,0.00044795,14]
[406265415,1771671046366,-1000.0,0.00044799,14]
[406265416,1771671046376,-7000.0,0.000448,120]
[406265417,1771671046386,-244.36,0.000448,14]
[406265418,1771671046396,-2392.0,0.000448,16]
[406265419,1771671046407,-1000.0,0.00044802,14]
[406265420,1771671046416,-1000.0,0.00044805,14]
[406265421,1771671046427,-413.71550616,0.00044814,14]
[406265422,1771671046437,-150.0,0.00044821,14]
[406265423,1771671046446,-1000.0,0.00044822,14]
[406265424,1771671046455,-1000.0,0.00044823,14]
[406265425,1771671046467,-150.0,0.00044827,14]
[406265426,1771671046476,-1000.0,0.00044831,14]
[406265427,1771671046485,-1000.0,0.00044839,14]
[406265428,1771671046493,-1000.0,0.00044844,14]
[406265429,1771671046502,-1000.0,0.00044849,14]
[406265430,1771671046513,-198.19743299,0.00044862,17]
[406265431,1771671046522,-150.0,0.00044862,14]
[406265432,1771671046531,-1000.0,0.00044865,14]
[406265433,1771671046540,-200.0,0.00044868,30]
[406265434,1771671046551,-200.0,0.00044868,30]
[406265435,1771671046559,-545.79913084,0.00044868,30]
[406265436,1771671046568,-200.0,0.00044868,30]
[406265437,1771671046577,-200.0,0.00044868,30]
[406265438,1771671046586,-200.0,0.00044868,30]
[406265439,1771671046595,-202.62533237,0.00044868,30]
[406265440,1771671046605,-151.0,0.00044868,30]
[406265441,1771671046615,-156.587,0.00044868,30]
[406265442,1771671046624,-162.380719,0.00044868,30]
[406265443,1771671046634,-168.3888056,0.00044868,30]
[406265444,1771671046644,-174.61919141,0.00044868,30]
[406265445,1771671046655,-174.24249478,0.00044868,30]
[406265446,1771671046666,-440.97885717,0.00044868,30]
[406265447,1771671046675,-500.0,0.00044868,30]
[406265448,1771671046686,-151.0,0.00044868,30]
[406265449,1771671046695,-500.0,0.00044868,30]
[406265450,1771671046704,-151.0,0.00044868,30]
[406265451,1771671046714,-250.0,0.00044868,30]
[406265452,1771671046724,-500.0,0.00044868,30]
[406265453,1771671046733,-151.0,0.00044868,30]
[406265454,1771671046742,-254.8861323,0.00044868,30]
[406265455,1771671046752,-500.0,0.00044868,30]
[406265456,1771671046763,-151.0,0.00044868,30]
[406265457,1771671046772,-500.0,0.00044868,30]
[406265458,1771671046782,-500.0,0.00044868,30]
[406265459,1771671046794,-151.0,0.00044868,30]
[406265460,1771671046804,-500.0,0.00044868,30]
[406265461,1771671046814,-500.0,0.00044868,30]
[406265462,1771671046824,-151.0,0.00044868,30]
[406265463,1771671046833,-500.0,0.00044868,30]
[406265464,1771671046845,-500.0,0.00044868,30]
[406265465,1771671046855,-151.0,0.00044868,30]
[406265466,1771671046866,-500.0,0.00044868,30]
[406265467,1771671046876,-500.0,0.00044868,30]
[406265468,1771671046886,-151.0,0.00044868,30]
[406265469,1771671046897,-500.0,0.00044868,30]
[406265470,1771671046908,-151.0,0.00044868,30]
[406265471,1771671046920,-500.0,0.00044868,30]
[406265472,1771671046930,-500.0,0.00044868,30]
[406265473,1771671046940,-151.0,0.00044868,30]
[406265474,1771671046949,-500.0,0.00044868,30]
[406265475,1771671046959,-518.5,0.00044868,30]
[406265476,1771671046969,-151.0,0.00044868,30]
[406265477,1771671046978,-500.0,0.00044868,30]
[406265478,1771671046987,-205.28068058,0.00044868,30]
[406265479,1771671046996,-537.6845,0.00044868,30]
[406265480,1771671047004,-565.54779735,0.00044868,30]
[406265481,1771671047013,-162.38071901,0.00044868,30]
[406265482,1771671047022,-557.5788265,0.00044868,30]
[406265483,1771671047031,-578.20924308,0.00044868,30]
[406265484,1771671047041,-200.0,0.00044868,30]
[406265485,1771671047050,-599.60298507,0.00044868,30]
[406265486,1771671047059,-207.4,0.00044868,30]
[406265487,1771671047068,-621.78829552,0.00044868,30]
[406265488,1771671047078,-157.57578229,0.00044868,30]
[406265489,1771671047088,-644.79446246,0.00044868,30]
[406265490,1771671047099,-578.20924308,0.00044868,30]
[406265491,1771671047108,-668.65185757,0.00044868,30]
[406265492,1771671047118,-693.3919763,0.00044868,30]
[406265493,1771671047127,-719.04747942,0.00044868,30]
[406265494,1771671047136,-745.65223616,0.00044868,30]
[406265495,1771671047146,-801.85129955,0.00044868,30]
[406265496,1771671047155,-500.0,0.00044868,30]
[406265497,1771671047164,-831.51979763,0.00044868,30]
[406265498,1771671047173,-500.0,0.00044868,30]
[406265499,1771671047183,-862.28603014,0.00044868,30]
[406265500,1771671047192,-500.0,0.00044868,30]
[406265501,1771671047201,-500.0,0.00044868,30]
[406265502,1771671047210,-894.19061326,0.00044868,30]
[406265503,1771671047219,-500.0,0.00044868,30]
[406265504,1771671047231,-500.0,0.00044868,30]
[406265505,1771671047240,-927.27566595,0.00044868,30]
[406265506,1771671047249,-500.0,0.00044868,30]
[406265507,1771671047258,-961.58486559,0.00044868,30]
[406265508,1771671047268,-997.16350561,0.00044868,30]
[406265509,1771671047277,-500.0,0.00044868,30]
[406265510,1771671047286,-500.0,0.00044868,30]
[406265511,1771671047295,-500.0,0.00044868,30]
[406265512,1771671047304,-500.0,0.0004487,3]
[406265513,1771671047313,-1000.0,0.0004487,3]
[406265514,1771671047322,-1000.0,0.0004487,3]
[406265515,1771671047331,-500.0,0.0004487,3]
[406265516,1771671047340,-1000.0,0.0004487,3]
[406265517,1771671047350,-1000.0,0.0004487,3]
[406265518,1771671047359,-500.0,0.0004487,3]
[406265519,1771671047369,-500.0,0.0004487,3]
[406265520,1771671047378,-1000.0,0.0004487,14]
[406265521,1771671047387,-1000.0,0.00044874,14]
[406265522,1771671047396,-150.0,0.00044876,2]
[406265523,1771671047405,-2627.62316749,0.00044876,28]
[406265524,1771671047415,-4876.48373072,0.00044876,2]
[406265525,1771671047424,-1221.04233056,0.00044876,2]
[406265526,1771671047433,-183.35442833,0.00044876,30]
[406265527,1771671047442,-1000.0,0.00044883,14]
[406265528,1771671047451,-1000.0,0.00044885,14]
[406265529,1771671047460,-1500.0,0.00044897,120]
[406265530,1771671047469,-1136.897,0.00044897,120]
[406265531,1771671047478,-1000.0,0.00044901,14]
[406265532,1771671047488,-150.0,0.00044905,14]
[406265533,1771671047497,-1000.0,0.00044918,14]
[406265534,1771671047506,-1000.0,0.00044927,14]
[406265535,1771671047515,-1000.0,0.00044931,14]
[406265536,1771671047524,-842.0,0.00044932,120]
[406265537,1771671047534,-1054.72374,0.00044938,120]
[406265538,1771671047542,-176.86129996,0.00044942,30]
[406265539,1771671047552,-1000.0,0.00044946,14]
[406265540,1771671047561,-1000.0,0.00044948,14]
[406265541,1771671047572,-367025.11972846,0.00044949,6]
[406265542,1771671047599,-500000.0,0.00044949,6]
[406265543,1771671047611,-3897.78383234,0.00044949,6]
[406265544,1771671047633,-523.34287504,0.00044949,6]
[406265545,1771671047650,-342.26322073,0.00044949,6]
[406265546,1771671047677,-19225.30952806,0.00044949,6]
[406265547,1771671047692,-81919.35549286,0.00044949,6]
[406265548,1771671047708,-1355.33546835,0.00044949,6]
[406265549,1771671047721,-590.0917593,0.00044949,6]
[406265550,1771671047733,-1017.86,0.00044949,6]
[406265551,1771671047892,-500.0,0.00017973,2]
[406265552,1771671047908,-988.15,0.00022,2]
[406265553,1771671047920,-974.74442038,0.00022,2]
[406265554,1771671047935,-705.44818493,0.00022,2]
[406265555,1771671047947,-863.10140794,0.00022,2]
[406265556,1771671048013,-12083.7123,0.00022,2]
[406265557,1771671128132,986.546056,7.945e-05,2]
[406265558,1771671292068,178.80221492,0.00012,2]
[406265559,1771671292830,156.45193805,0.00015,3]
[406265560,1771671585333,7302.11,0.00013342,2]
[406265561,1771671691063,168.64,0.0001285,2]
[406265562,1771671820711,-327.407725,0.00015675,2]
[406265563,1771672033964,200.0,0.00015491,2]
[406265564,1771672113149,6762.12,0.00015462,2]
[406265567,1771672166911,2383.07455,0.00015486,2]
[406265568,1771672166932,10000.01,0.00015486,2]
[406265569,1771672166955,10000.01,0.00015486,2]
[406265570,1771672166976,10000.01,0.00015486,2]
[406265571,1771672166999,10000.01,0.00015486,2]
[406265572,1771672167020,10000.01,0.00015486,2]
[406265573,1771672167044,10000.01,0.00015486,2]
[406265574,1771672167064,10000.01,0.00015486,2]
[406265575,1771672167084,10000.01,0.00015486,2]
[406265576,1771672167104,10000.01,0.00015486,2]
[406265577,1771672182067,-1760.47716471,0.00015486,2]
[406265578,1771672182144,-10000.01,0.00015486,2]
[406265579,1771672185007,-10000.01,0.00015486,2]
[406265580,1771672194204,-10000.01,0.00015486,2]
[406265581,1771672197000,-1307.04171471,0.00015486,2]
[406265582,1771672197024,-7385.92657058,0.00015486,2]
[406265583,1771672221131,250.0,0.00015,2]
[406265584,1771672231453,-1689.99184079,0.00015486,2]
[406265585,1771672231506,-1228.70968045,0.00015486,2]
[406265586,1771672231517,-914.56105735,0.00015486,2]
[406265587,1771672231527,-4876.48373074,0.00015654,2]
[406265588,1771672231539,-2627.62316749,0.00015654,2]
[406265589,1771672231548,-281.0,0.00015654,2]
[406265590,1771672231557,-1221.04233056,0.00015654,2]
[406265591,1771672231566,-506.60132304,0.00015683,2]
[406265592,1771672231576,-193.0,0.00015701,2]
[406265593,1771672231585,-231.21812179,0.00015732,2]
[406265594,1771672231597,-382.12521048,0.00015738,2]
[406265595,1771672231607,-382.12521048,0.00015738,2]
[406265596,1771672231615,-151.0,0.00015745,2]
[406265597,1771672231624,-151.0,0.00015745,2]
[406265598,1771672231633,-151.0,0.00015745,2]
[406265599,1771672231643,-300.0,0.00015747,2]
[406265600,1771672231652,-300.0,0.00015747,2]
[406265601,1771672231661,-300.0,0.00015747,2]
[406265602,1771672231673,-1200.0,0.00015747,2]
[406265603,1771672231683,-18485.45565925,0.00015748,2]
[406265604,1771672231694,-70994.32654075,0.00015748,2]
[406265605,1771672231704,-2500.0,0.00015748,2]
[406265606,1771672231713,-170480.79013971,0.00015748,2]
[406265607,1771672231724,-676.92004919,0.00015748,2]
[406265608,1771672237607,-7043.0,0.00015748,2]
[406265609,1771672237620,-2693692.89141141,0.00015748,2]
[406265610,1771672237660,-500.0,0.00015748,2]
[406265627,1771672239697,-8775.72157365,0.00015748,2]
[406265628,1771672239711,-8947.21879473,0.00015748,2]
[406265629,1771672239723,-8943.78386462,0.00015748,2]
[406265630,1771672239734,-9077.54866152,0.00015748,2]
[406265631,1771672239745,-591862.12550517,0.00015748,2]
[406265632,1771672239755,-549.10229322,0.00015756,2]
[406265633,1771672239774,-189.58150033,0.00015756,2]
[406265634,1771672239794,-406.5836569,0.00015756,2]
[406265635,1771672239809,-510.43282028,0.00015756,2]
[406265636,1771672239818,-35878.95077456,0.00015757,2]
[406265637,1771672239827,-54951.54851485,0.00015757,2]
[406265638,1771672239836,-1500.0,0.00015783,2]
[406265639,1771672239845,-150.0,0.00015824,2]
[406265640,1771672239854,-1000.0,0.00015846,2]
[406265641,1771672239863,-345042.52,0.00015848,2]
[406265642,1771672239871,-151.0,0.00015925,2]
[406265643,1771672239880,-10359.23,0.00015928,2]
[406265644,1771672239890,-8507.25,0.00015982,2]
[406265645,1771672239900,-522.0,0.00016,2]
[406265646,1771672239909,-168.64,0.00016063,2]
[406265647,1771672239918,-5403.05,0.00016179,2]
[406265648,1771672239927,-5301.71,0.00016179,2]
[406265649,1771672239936,-102458.96,0.00016179,2]
[406265650,1771672239945,-150.99,0.00016179,2]
[406265651,1771672239954,-499.99,0.00016179,2]
[406265652,1771672239963,-299.99,0.00016179,4]
[406265653,1771672239976,-4999.99,0.00016179,2]
[406265654,1771672239985,-9999.99,0.00016179,2]
[406265655,1771672239994,-1848.26,0.00016179,2]
[406265656,1771672240003,-9999.99,0.00016179,2]
[406265657,1771672240013,-9999.99,0.00016179,2]
[406265658,1771672240022,-150.99,0.00016179,2]
[406265659,1771672240032,-153.03,0.000163,2]
[406265660,1771672240041,-212.32,0.00016438,30]
[406265661,1771672240051,-228.09654526,0.00016442,2]
[406265662,1771672240060,-500.0,0.00016442,2]
[406265663,1771672240069,-217.08848713,0.00016442,2]
[406265664,1771672240078,-500.0,0.00016442,2]
[406265665,1771672240087,-500.0,0.00016442,2]
[406265666,1771672240096,-500.0,0.00016442,2]
[406265667,1771672240106,-500.0,0.00016442,2]
[406265668,1771672240114,-500.0,0.00016442,2]
[406265669,1771672240132,-9999.99,0.00016443,2]
[406265670,1771672240143,-999.99,0.00016443,2]
[406265671,1771672240152,-1400.0,0.000165,6]
[406265672,1771672240162,-2900.0,0.000166,6]
[406265673,1771672240171,-500.0,0.000166,6]
[406265674,1771672240181,-4400.0,0.000167,6]
[406265675,1771672240190,-5900.0,0.000168,6]
[406265676,1771672240200,-510.0,0.00016865,2]
[406265677,1771672240209,-500.0,0.00016874,6]
[406265678,1771672240219,-212.0,0.00016898,2]
[406265679,1771672240228,-7400.0,0.000169,6]
[406265680,1771672240237,-151.0,0.0001692,2]
[406265681,1771672240246,-151.0,0.0001692,2]
[406265682,1771672240255,-151.0,0.0001692,2]
[406265683,1771672240265,-151.0,0.0001692,2]
[406265684,1771672240274,-151.0,0.0001692,2]
[406265685,1771672240284,-151.0,0.0001692,2]
[406265686,1771672240294,-151.0,0.0001692,2]
[406265687,1771672240303,-151.0,0.0001692,2]
[406265688,1771672240312,-151.0,0.0001692,2]
[406265689,1771672240324,-151.0,0.0001692,2]
[406265690,1771672240333,-151.0,0.0001692,2]
[406265691,1771672240343,-151.0,0.0001692,2]
[406265692,1771672240351,-151.0,0.0001692,2]
[406265693,1771672240363,-151.0,0.0001692,2]
[406265694,1771672240372,-151.0,0.0001692,2]
[406265695,1771672240381,-151.0,0.0001692,2]
[406265696,1771672240391,-151.0,0.0001692,2]
[406265697,1771672240400,-151.0,0.0001692,2]
[406265698,1771672240410,-151.0,0.0001692,2]
[406265699,1771672240419,-151.0,0.0001692,2]
[406265700,1771672240428,-1761.934,0.00016928,2]
[406265701,1771672240440,-173.346,0.00016928,2]
[406265702,1771672240449,-300.0,0.00017,2]
[406265703,1771672240458,-776.62150607,0.00017029,5]
[406265704,1771672240467,-164.51,0.0001703,2]
[406265705,1771672240476,-500.0,0.0001703,2]
[406265706,1771672240485,-500.0,0.0001703,2]
[406265707,1771672240494,-500.0,0.0001703,2]
[406265708,1771672240503,-500.0,0.0001703,2]
[406265709,1771672240512,-500.0,0.0001703,2]
[406265710,1771672240524,-500.0,0.0001703,2]
[406265711,1771672240533,-500.0,0.0001703,2]
[406265712,1771672240543,-500.0,0.0001703,2]
[406265713,1771672240552,-500.0,0.0001703,2]
[406265714,1771672240563,-500.0,0.0001703,2]
[406265715,1771672240574,-500.0,0.0001703,2]
[406265716,1771672240584,-500.0,0.0001703,2]
[406265717,1771672240594,-500.0,0.0001703,2]
[406265718,1771672240604,-547.48834676,0.0001703,2]
[406265719,1771672240613,-500.0,0.0001703,2]
[406265720,1771672240622,-616.19377918,0.0001703,2]
[406265721,1771672240631,-500.0,0.0001703,2]
[406265722,1771672240640,-500.0,0.0001703,2]
[406265723,1771672240649,-500.0,0.0001703,2]
[406265724,1771672240659,-516.24696625,0.0001703,2]
[406265725,1771672240668,-500.0,0.0001703,2]
[406265726,1771672240677,-544.36077424,0.0001703,2]
[406265727,1771672240687,-500.0,0.0001703,2]